bitfinex/quotes_BTCUSD_20250417
["timestamp","ask_amount","ask_price","bid_price","bid_amount"]
[1744901475651,0.24973007,84091.0,84088.0,0.24973722]
[1744901476062,0.24973242,84090.0,84086.0,0.01189258]
[1744901476268,0.23785093,84087.0,84085.0,0.00908725]
[1744901476471,0.24974153,84088.0,84085.0,0.34]
[1744901476673,0.23785172,84086.0,84085.0,0.34913056]
[1744901476869,0.23789133,84072.0,84070.0,0.61135229]
[1744901477068,0.2378885,84073.0,84064.0,0.23791136]
[1744901477279,0.23789733,84070.0,84067.0,0.01189527]
[1744901477499,0.23789733,84070.0,84067.0,0.36924694]
[1744901477713,0.23789733,84070.0,84068.0,0.34]
[1744901477909,0.0118947,84071.0,84068.0,0.58979617]
[1744901478112,0.2378926,84072.0,84067.0,0.36924694]
[1744901478113,0.24978723,84072.0,84067.0,0.24979995]
[1744901478315,0.01189456,84072.0,84068.0,0.24979632]
[1744901478679,0.01189456,84072.0,84070.0,0.23789665]
[1744901478889,0.237889,84076.0,84069.0,0.35189499]
[1744901478890,0.249783,84076.0,84072.0,0.35189456]
[1744901479301,0.23788409,84075.0,84072.0,0.35189456]
[1744901479476,0.2378885,84073.0,84072.0,0.34]
[1744901479707,0.01189301,84083.0,84076.0,0.34]
[1744901479927,0.00013557,84083.0,84081.0,0.01189329]
[1744901480141,0.00013557,84083.0,84082.0,0.35189315]
[1744901480349,0.00013557,84083.0,84082.0,0.34]
[1744901481296,0.24975618,84082.0,84079.0,0.34]
[1744901481563,0.23786676,84081.0,84079.0,0.34]
[1744901482070,0.24975618,84082.0,84070.0,0.46147229]
[1744901482071,0.23789416,84071.0,84070.0,0.80147229]
[1744901482314,0.23789416,84071.0,84070.0,0.34]
[1744901484821,0.23789189,84072.0,84061.0,0.001]
[1744901484822,0.23791963,84062.0,84061.0,0.001]
[1744901485074,0.23791963,84062.0,84061.0,0.341]
[1744901485467,0.24980397,84066.0,84062.0,0.01189598]
[1744901485684,0.24981241,84064.0,84061.0,0.341]
[1744901486288,0.23791963,84062.0,84061.0,0.001]
[1744901486730,0.76826754,84062.0,84061.0,0.001]
[1744901487214,0.81626754,84062.0,84061.0,0.001]
[1744901487671,0.23794793,84052.0,84051.0,0.00426282]
[1744901487881,0.76729584,84052.0,84051.0,0.00426282]
[1744901488297,0.64784793,84052.0,84051.0,0.00426282]
[1744901489116,0.65184793,84052.0,84051.0,0.00526282]
[1744901489326,0.65184793,84052.0,84051.0,0.00426282]
[1744901489703,0.65484793,84052.0,84051.0,0.00426282]
[1744901490129,0.65584793,84052.0,84051.0,0.00426282]
[1744901498525,0.65584793,84052.0,84040.0,0.46147229]
[1744901498526,0.23797908,84041.0,84040.0,0.37199821]
[1744901498677,0.2379904,84037.0,84034.0,0.17772361]
[1744901498881,0.2379904,84037.0,84034.0,0.59003449]
[1744901499118,0.2379904,84037.0,84034.0,0.35203566]
[1744901500025,0.23799442,84036.0,84034.0,0.35203566]
[1744901500477,0.23799442,84036.0,84034.0,0.34013572]
[1744901500947,0.23799607,84035.0,84034.0,0.00013572]
[1744901501154,0.23799442,84036.0,84034.0,0.34013572]
[1744901501816,0.01189952,84037.0,84034.0,0.34013572]
[1744901501817,0.01189952,84037.0,84034.0,0.57813236]
[1744901502440,0.23799324,84036.0,84034.0,0.34013572]
[1744901502850,0.24989505,84037.0,84034.0,0.34916847]
[1744901503053,0.23799607,84035.0,84034.0,0.34916847]
[1744901503331,0.23799477,84036.0,84034.0,0.34916847]
[1744901503957,0.24989245,84037.0,84035.0,0.23799553]
[1744901504180,0.24989245,84037.0,84034.0,0.24716507]
[1744901504398,0.24988939,84038.0,84035.0,0.23799498]
[1744901505038,0.23799515,84036.0,84034.0,0.36106841]
[1744901505231,0.01189952,84037.0,84034.0,0.36106841]
[1744901505232,0.2498915,84037.0,84034.0,0.59906716]
[1744901505635,0.2498915,84037.0,84035.0,0.23799579]
[1744901505775,0.01189952,84037.0,84034.0,0.59906716]
[1744901506008,0.01189923,84039.0,84035.0,0.0118998]
[1744901506200,0.23798882,84038.0,84035.0,0.24989037]
[1744901506656,0.2379904,84037.0,84035.0,0.24989037]
[1744901506855,0.23799324,84036.0,84034.0,0.02106841]
[1744901507053,0.24988712,84038.0,84035.0,0.0118998]
[1744901507450,0.24988712,84038.0,84034.0,0.02106841]
[1744901507451,0.01189952,84037.0,84034.0,0.00916847]
[1744901507652,0.01189952,84037.0,84034.0,0.25906703]
[1744901507854,0.23799537,84036.0,84034.0,0.00916847]
[1744901508056,0.24989237,84037.0,84034.0,0.00916847]
[1744901508057,0.2498901,84037.0,84034.0,0.00916847]
[1744901508273,0.2498901,84037.0,84030.0,0.0004212]
[1744901508274,0.01190136,84024.0,84021.0,0.34]
[1744901508598,0.01189952,84037.0,84033.0,0.01190008]
[1744901508761,0.01189881,84042.0,84038.0,0.01189937]
[1744901508928,0.23798903,84038.0,84035.0,0.24989557]
[1744901509130,0.01189895,84041.0,84036.0,0.01189966]
[1744901509403,0.01189895,84041.0,84036.0,0.24989268]
[1744901509532,0.01454085,84070.0,84041.0,0.35189895]
[1744901509533,0.16173796,84048.0,84041.0,0.35189895]
[1744901509744,0.23797392,84043.0,84041.0,0.34]
[1744901510619,0.23797624,84042.0,84040.0,0.34]
[1744901510794,0.23797908,84041.0,84040.0,0.34]
[1744901511012,0.24987803,84041.0,84040.0,0.34]
[1744901511214,0.24987803,84041.0,84034.0,0.34]
[1744901511215,0.23799093,84037.0,84034.0,0.34]
[1744901511409,0.24988754,84038.0,84033.0,0.34]
[1744901511602,0.24988992,84037.0,84034.0,0.24989616]
[1744901511803,0.23799607,84035.0,84033.0,0.34]
[1744901512097,0.24989399,84036.0,84033.0,0.57800015]
[1744901512323,0.23799628,84035.0,84033.0,0.34]
[1744901512662,0.2379989,84034.0,84033.0,0.34]
[1744901512818,0.23801589,84028.0,84027.0,0.04814852]
[1744901513152,0.2499223,84027.0,84024.0,0.00690136]
[1744901513302,0.01190107,84026.0,84023.0,0.34]
[1744901513501,0.01190107,84026.0,84023.0,0.001]
[1744901513701,0.23802543,84025.0,84023.0,0.001]
[1744901513905,0.24992298,84026.0,84023.0,0.001]
[1744901514126,0.24992298,84026.0,84023.0,0.23902902]
[1744901514329,0.23802462,84025.0,84023.0,0.001]
[1744901514509,0.23801733,84028.0,84024.0,0.01190136]
[1744901514710,0.01190051,84030.0,84027.0,0.34]
[1744901514936,0.23801589,84028.0,84027.0,0.34]
[1744901515885,0.23802723,84024.0,84023.0,0.04938302]
[1744901516176,0.23802525,84025.0,84023.0,0.04938302]
[1744901516759,0.23802723,84024.0,84023.0,0.04938302]
[1744901517344,0.23802525,84025.0,84023.0,0.04938302]
[1744901517550,0.23801938,84027.0,84024.0,0.24992581]
[1744901517750,0.23802229,84026.0,84023.0,0.29931458]
[1744901517955,0.24992031,84027.0,84023.0,0.29931458]
[1744901517956,0.24992031,84027.0,84024.0,0.23802696]
[1744901518307,0.23800968,84031.0,84027.0,0.01190093]
[1744901518515,0.2380105,84030.0,84028.0,0.23801491]
[1744901518728,0.2380109,84030.0,84028.0,0.23801491]
[1744901519098,0.24991141,84030.0,84027.0,0.01190093]
[1744901519602,0.24989774,84035.0,84031.0,0.24990647]
[1744901519805,0.23800654,84032.0,84028.0,0.01190079]
[1744901520004,0.01190037,84031.0,84028.0,0.01190079]
[1744901520412,0.23801069,84030.0,84028.0,0.01190079]
[1744901520610,0.23801069,84030.0,84028.0,0.2499156]
[1744901521028,0.01190037,84031.0,84028.0,0.2499156]
[1744901521245,0.2379951,84036.0,84033.0,0.23799891]
[1744901521454,0.24988445,84039.0,84035.0,0.24989456]
[1744901521642,0.4109,84041.0,84038.0,0.01189937]
[1744901521867,0.66077964,84041.0,84038.0,0.01189937]
[1744901522427,0.23798758,84038.0,84036.0,0.23799311]
[1744901522636,0.01189966,84036.0,84032.0,0.58990241]
[1744901522838,0.01189937,84038.0,84035.0,0.23799607]
[1744901523059,0.24988763,84038.0,84035.0,0.23799607]
[1744901523436,0.2498842,84039.0,84036.0,0.23799128]
[1744901523838,0.4109,84041.0,84036.0,0.01189966]
[1744901524040,0.23798217,84040.0,84038.0,0.01189937]
[1744901524246,0.01189881,84042.0,84038.0,0.24988623]
[1744901524401,0.01189895,84041.0,84037.0,0.01189952]
[1744901524605,0.01189895,84041.0,84035.0,0.24989065]
[1744901524606,0.01189711,84054.0,84050.0,0.23795165]
[1744901524805,0.01189626,84060.0,84055.0,0.01189697]
[1744901525013,0.01189541,84066.0,84061.0,0.01189612]
[1744901525215,0.23792168,84062.0,84056.0,0.01189683]
[1744901525423,0.24981766,84062.0,84058.0,0.24982659]
[1744901525625,0.56078,84068.0,84067.0,0.23790548]
[1744901525626,0.14988,84068.0,84067.0,0.23790548]
[1744901525928,0.0008424,84072.0,84070.0,0.23789699]
[1744901526107,0.00097797,84072.0,84070.0,0.23789699]
[1744901526754,0.00097797,84072.0,84071.0,0.34]
[1744901527800,0.00097797,84072.0,84070.0,0.23789699]
[1744901528252,0.00297797,84072.0,84070.0,0.23789699]
[1744901528455,0.00397797,84072.0,84070.0,0.23789699]
[1744901529073,0.00097797,84072.0,84070.0,0.23789699]
[1744901529273,0.00097797,84072.0,84071.0,0.11944791]
[1744901530687,0.00297797,84072.0,84071.0,0.11944791]
[1744901532125,0.00297797,84072.0,84070.0,0.23789699]
[1744901532401,0.24086971,84072.0,84070.0,0.34]
[1744901533331,0.00297797,84072.0,84070.0,0.57789539]
[1744901533467,0.00297797,84072.0,84070.0,0.34]
[1744901533667,0.23887054,84072.0,84070.0,0.34]
[1744901534309,0.23887024,84072.0,84070.0,0.34]
[1744901534484,0.00097797,84072.0,84070.0,0.57789574]
[1744901534699,0.23886963,84072.0,84070.0,0.34]
[1744901535026,0.00097797,84072.0,84070.0,0.34]
[1744901535199,0.23886998,84072.0,84070.0,0.34]
[1744901535396,0.00097797,84072.0,84070.0,0.34]
[1744901535973,0.23789416,84071.0,84070.0,0.34]
[1744901536381,0.24979684,84069.0,84066.0,0.34]
[1744901536588,0.01189484,84070.0,84066.0,0.34]
[1744901536989,0.01189484,84070.0,84067.0,0.01189527]
[1744901537283,0.01189484,84070.0,84066.0,0.34]
[1744901537284,0.23790548,84067.0,84066.0,0.34]
[1744901538070,0.01189555,84065.0,84062.0,0.34]
[1744901538273,0.23791093,84066.0,84064.0,0.339359]
[1744901538514,0.23791114,84065.0,84064.0,0.339359]
[1744901539122,0.23792812,84059.0,84058.0,0.04871268]
[1744901539358,0.01189683,84056.0,84053.0,0.01012715]
[1744901539566,0.23794227,84054.0,84053.0,0.01012715]
[1744901539999,0.23794227,84054.0,84053.0,0.05872743]
[1744901540205,0.23794227,84054.0,84053.0,0.001]
[1744901540629,0.23794227,84054.0,84042.0,0.24986942]
[1744901540630,0.01189824,84046.0,84042.0,0.24986942]
[1744901540834,0.01189796,84048.0,84045.0,0.23796718]
[1744901541042,0.2379469,84053.0,84049.0,0.23795535]
[1744901541474,0.23794826,84052.0,84049.0,0.23795535]
[1744901541694,0.2379469,84053.0,84049.0,0.23795535]
[1744901542090,0.24984532,84052.0,84049.0,0.01189782]
[1744901542295,0.23795646,84049.0,84046.0,0.35189824]
[1744901542419,0.23795671,84049.0,84046.0,0.35189824]
[1744901542621,0.01389712,84054.0,84047.0,0.24985934]
[1744901543053,0.01189753,84051.0,84048.0,0.24985453]
[1744901543454,0.01189753,84051.0,84049.0,0.23795543]
[1744901544226,0.25184501,84054.0,84050.0,0.23795189]
[1744901544403,0.25184501,84054.0,84051.0,0.24984631]
[1744901545388,0.25284501,84054.0,84051.0,0.24984631]
[1744901545587,0.00300001,84054.0,84051.0,0.24984631]
[1744901545962,0.00300001,84054.0,84053.0,0.2379451]
[1744901546535,0.23794757,84053.0,84046.0,0.57796291]
[1744901546717,0.01189739,84052.0,84050.0,0.23795336]
[1744901546914,0.23796209,84047.0,84044.0,0.23797002]
[1744901547177,0.01189796,84048.0,84044.0,0.01189852]
[1744901547355,0.24985913,84048.0,84045.0,0.23796594]
[1744901547552,0.24985913,84048.0,84046.0,0.34]
[1744901547759,0.23796209,84047.0,84046.0,0.34]
[1744901548232,0.23797264,84044.0,84042.0,0.05732081]
[1744901548443,0.23797341,84043.0,84042.0,0.05732081]
[1744901548647,0.01189966,84036.0,84033.0,0.238]
[1744901548830,0.24990155,84034.0,84031.0,0.49490752]
[1744901549059,0.01189994,84034.0,84031.0,0.49490752]
[1744901549261,0.01189966,84036.0,84032.0,0.24990406]
[1744901549460,0.23799286,84037.0,84033.0,0.24989912]
[1744901549762,0.23799286,84037.0,84033.0,0.01190008]
[1744901549969,0.23799316,84037.0,84034.0,0.01189994]
[1744901550208,0.24988753,84038.0,84034.0,0.24989814]
[1744901550482,0.23799161,84037.0,84034.0,0.24989814]
[1744901550859,0.24988753,84038.0,84034.0,0.24989814]
[1744901551252,0.23799128,84037.0,84034.0,0.24989814]
[1744901552093,0.23799128,84037.0,84030.0,0.01190051]
[1744901552094,0.24992207,84027.0,84024.0,0.45347229]
[1744901552246,0.24992267,84026.0,84021.0,0.27413679]
[1744901552452,0.24992267,84026.0,84022.0,0.17503256]
[1744901552996,0.01190093,84027.0,84023.0,0.2499304]
[1744901553206,0.24992034,84027.0,84024.0,0.24992759]
[1744901553407,0.24992149,84027.0,84024.0,0.24992759]
[1744901553606,0.01190065,84029.0,84025.0,0.01190121]
[1744901553819,0.24991941,84028.0,84025.0,0.01190121]
[1744901553954,0.24991941,84028.0,84025.0,0.24992484]
[1744901554511,0.23802439,84025.0,84024.0,0.00886217]
[1744901554920,0.2499256,84025.0,84022.0,0.01190164]
[1744901555216,0.01190093,84027.0,84023.0,0.0119015]
[1744901555359,0.24991941,84028.0,84024.0,0.23802723]
[1744901555571,0.24991941,84028.0,84025.0,0.238024]
[1744901555763,0.24991941,84028.0,84024.0,0.23802723]
[1744901556021,0.24991941,84028.0,84024.0,0.2467359]
[1744901556687,0.24991941,84028.0,84025.0,0.24992526]
[1744901556866,0.23801282,84030.0,84027.0,0.01190093]
[1744901557099,0.24991333,84030.0,84027.0,0.24991952]
[1744901557308,0.23801716,84028.0,84026.0,0.01190107]
[1744901557886,0.23801891,84027.0,84025.0,0.01190121]
[1744901558026,0.23801891,84027.0,84025.0,0.23802338]
[1744901558027,0.01190093,84027.0,84025.0,0.23802338]
[1744901558802,0.01190093,84027.0,84024.0,0.00870867]
[1744901559000,0.24991875,84028.0,84025.0,0.01190121]
[1744901559159,0.23801893,84027.0,84025.0,0.01190121]
[1744901560171,0.01190093,84027.0,84020.0,0.46147229]
[1744901560376,0.23802733,84024.0,84022.0,0.23803151]
[1744901560788,0.24992869,84024.0,84021.0,0.63491982]
[1744901560985,0.24992869,84024.0,84022.0,0.23803261]
[1744901561191,0.23803289,84022.0,84021.0,0.37616648]
[1744901562537,0.24992889,84024.0,84021.0,0.37616648]
[1744901562764,0.01190121,84025.0,84023.0,0.23803006]
[1744901562879,0.24992701,84025.0,84022.0,0.24993306]
[1744901563300,0.23803289,84022.0,84021.0,0.03616648]
[1744901564071,0.01190107,84026.0,84000.0,3.0004211]
[1744901564072,0.01190391,84006.0,84000.0,3.0004211]
[1744901564271,0.2380924,84001.0,84000.0,2.9054211]
[1744901564685,0.2380924,84001.0,84000.0,3.29383333]
[1744901565336,0.2380924,84001.0,84000.0,2.95383333]
[1744901565513,0.2380924,84001.0,84000.0,3.29383333]
[1744901565669,0.2390924,84001.0,84000.0,2.95383333]
[1744901566476,0.001,84001.0,84000.0,2.95383333]
[1744901567177,0.001,84001.0,84000.0,3.19192856]
[1744901567600,0.001,84001.0,84000.0,2.95383333]
[1744901567805,0.2390924,84001.0,84000.0,2.95383333]
[1744901568007,0.2380924,84001.0,84000.0,2.95383333]
[1744901568374,0.2390924,84001.0,84000.0,2.95383333]
[1744901569591,0.2380924,84001.0,84000.0,2.95383333]
[1744901570001,0.2390924,84001.0,84000.0,2.95383333]
[1744901570274,0.2390924,84001.0,84000.0,2.9054211]
[1744901570571,0.24009241,84001.0,84000.0,2.9054211]
[1744901571126,0.2390924,84001.0,84000.0,2.9054211]
[1744901571421,0.24009241,84001.0,84000.0,2.9054211]
[1744901571634,0.33659241,84001.0,84000.0,2.9054211]
[1744901571837,0.45604032,84001.0,84000.0,2.9054211]
[1744901572441,0.45504032,84001.0,84000.0,2.9054211]
[1744901572564,0.45604032,84001.0,84000.0,2.9054211]
[1744901572772,0.45504032,84001.0,84000.0,2.9054211]
[1744901573178,0.45904032,84001.0,84000.0,2.9054211]
[1744901573829,0.47358117,84001.0,84000.0,2.9054211]
[1744901574034,0.47358117,84001.0,84000.0,2.89570583]
[1744901574236,0.81458117,84001.0,84000.0,1.82742717]
[1744901574650,0.81458117,84001.0,84000.0,1.73242717]
[1744901574974,0.81658117,84001.0,84000.0,1.73242717]
[1744901575109,0.81258117,84001.0,84000.0,1.73242717]
[1744901575340,0.81058117,84001.0,84000.0,1.73242717]
[1744901575540,0.82058117,84001.0,84000.0,1.73342717]
[1744901575736,0.82658117,84001.0,84000.0,1.73442717]
[1744901580726,0.84863259,84001.0,84000.0,1.73442717]
[1744901580933,0.99735259,84001.0,84000.0,1.73442717]
[1744901581461,0.97530117,84001.0,84000.0,1.73442717]
[1744901581689,0.97430116,84001.0,84000.0,1.73442717]
[1744901584789,0.97430116,84001.0,84000.0,1.63942717]
[1744901586736,0.37454031,84001.0,84000.0,1.63942717]
[1744901587162,0.2550924,84001.0,84000.0,1.64042717]
[1744901587803,0.011,84001.0,84000.0,1.8775224]
[1744901588039,0.003,84001.0,84000.0,1.9238224]
[1744901588254,0.003,84001.0,84000.0,1.68572717]
[1744901588467,0.005,84001.0,84000.0,1.68672717]
[1744901588953,0.006,84001.0,84000.0,1.68672717]
[1744901589157,0.002,84001.0,84000.0,2.15427624]
[1744901589331,0.01103681,84024.0,84016.0,0.01190249]
[1744901589536,0.23802673,84025.0,84018.0,0.71141742]
[1744901589735,0.01190093,84027.0,84020.0,0.01190192]
[1744901589956,0.01190121,84025.0,84020.0,0.01190192]
[1744901590239,0.0119015,84023.0,84019.0,0.01190206]
[1744901591195,0.23804706,84017.0,84016.0,0.00045242]
[1744901591367,0.24994387,84019.0,84016.0,0.00045242]
[1744901591919,0.23804706,84017.0,84016.0,0.00045242]
[1744901592322,0.23904706,84017.0,84016.0,0.00045242]
[1744901592805,0.24993568,84022.0,84002.0,0.23808916]
[1744901592806,0.01190391,84006.0,84002.0,0.01190447]
[1744901592997,0.01190419,84004.0,84000.0,2.15630062]
[1744901593208,0.24998887,84004.0,84000.0,2.15630062]
[1744901593413,0.2380918,84002.0,84000.0,2.10900062]
[1744901593697,0.2380918,84002.0,84000.0,1.63842717]
[1744901593914,0.2380918,84002.0,84000.0,1.63242717]
[1744901594238,0.2380918,84002.0,84000.0,1.54342717]
[1744901594615,0.2380918,84002.0,84000.0,1.54442717]
[1744901595030,0.2380918,84002.0,84000.0,1.54342717]
[1744901595407,0.2390918,84002.0,84000.0,1.54342717]
[1744901595606,0.2380918,84002.0,84000.0,1.54342717]
[1744901596014,0.2420918,84002.0,84000.0,1.54342717]
[1744901596193,0.004,84002.0,84000.0,1.54342717]
[1744901596765,0.24409028,84002.0,84000.0,1.54342717]
[1744901597152,0.24209028,84002.0,84000.0,1.54342717]
[1744901597493,0.24009028,84002.0,84000.0,1.54342717]
[1744901597893,0.24209028,84002.0,84000.0,1.54342717]
[1744901598105,0.24009028,84002.0,84000.0,1.54342717]
[1744901598504,0.24109028,84002.0,84000.0,1.54342717]
[1744901598933,0.2380924,84001.0,84000.0,1.54342717]
[1744901600256,0.2390924,84001.0,84000.0,1.54342717]
[1744901600930,0.2410924,84001.0,84000.0,1.54342717]
[1744901603497,0.2410924,84001.0,84000.0,1.44842717]
[1744901611155,0.003,84001.0,84000.0,2.0265224]
[1744901611376,0.003,84001.0,84000.0,2.24077031]
[1744901612162,0.001,84001.0,84000.0,2.24077031]
[1744901612344,0.00045234,84017.0,84016.0,0.23804989]
[1744901614039,0.00145234,84017.0,84016.0,0.23804989]
[1744901614787,0.00145234,84017.0,84016.0,0.5869047]
[1744901615391,0.00245234,84017.0,84016.0,0.5869047]
[1744901617246,0.00245234,84017.0,84016.0,0.5879047]
[1744901617795,0.2404994,84017.0,84016.0,0.341]
[1744901617996,0.23808365,84005.0,84001.0,0.34]
[1744901618197,0.24998883,84004.0,84001.0,0.34]
[1744901618399,0.24998883,84004.0,84000.0,1.25942717]
[1744901618400,0.2380924,84001.0,84000.0,1.25942717]
[1744901618612,0.2380924,84001.0,84000.0,1.59942717]
[1744901618817,0.2380924,84001.0,84000.0,1.16442717]
[1744901619280,0.23809033,84002.0,84000.0,1.16442717]
[1744901619606,0.23809033,84002.0,84001.0,0.001]
[1744901619807,0.2380924,84001.0,84000.0,1.16442717]
[1744901620024,0.2390924,84001.0,84000.0,1.16442717]
[1744901620418,0.001,84001.0,84000.0,1.4025224]
[1744901620621,0.001,84001.0,84000.0,1.7912224]
[1744901620753,0.001,84001.0,84000.0,1.91067031]
[1744901621163,0.24995549,84015.0,84011.0,0.24996491]
[1744901621368,0.2499597,84014.0,84011.0,0.24996491]
[1744901621583,0.2499597,84014.0,84011.0,0.0119032]
[1744901621783,0.2499597,84014.0,84011.0,0.24996591]
[1744901621979,0.2499597,84014.0,84006.0,0.15498125]
[1744901621980,0.24997174,84010.0,84006.0,0.15498125]
[1744901622208,0.01190291,84013.0,84010.0,0.23806665]
[1744901622404,0.01190306,84012.0,84009.0,0.01190348]
[1744901622827,0.24996428,84012.0,84011.0,0.001]
[1744901623158,0.24996768,84011.0,84008.0,0.24997425]
[1744901623360,0.23805849,84013.0,84011.0,0.0119032]
[1744901623570,0.001,84012.0,84011.0,0.0119032]
[1744901623768,0.001,84012.0,84011.0,0.24996573]
[1744901623930,0.001,84012.0,84010.0,0.01190334]
[1744901624130,0.24996171,84013.0,84010.0,0.01190334]
[1744901624552,0.23806133,84012.0,84010.0,0.01190334]
[1744901624750,0.23806133,84012.0,84010.0,0.24997023]
[1744901625159,0.23806133,84012.0,84010.0,0.01190334]
[1744901625414,0.23806973,84009.0,84005.0,0.24998374]
[1744901625778,0.24997865,84008.0,84005.0,0.24998374]
[1744901626124,0.24997,84011.0,84004.0,0.35190419]
[1744901626337,0.01190334,84010.0,84005.0,0.2499849]
[1744901626540,0.23807224,84009.0,84006.0,0.23807703]
[1744901626701,0.23807224,84009.0,84005.0,0.2499849]
[1744901626907,0.23807365,84008.0,84005.0,0.2499849]
[1744901627405,0.01190334,84010.0,84002.0,0.34]
[1744901627406,0.01190376,84007.0,84002.0,0.34]
[1744901627609,0.23808433,84004.0,84002.0,0.34]
[1744901627824,0.23808673,84003.0,84002.0,0.34]
[1744901628237,0.23808673,84003.0,84002.0,0.335]
[1744901628608,0.23808956,84002.0,84000.0,1.16442717]
[1744901628813,0.01190405,84005.0,84002.0,0.23808756]
[1744901628994,0.01190391,84006.0,84002.0,0.001]
[1744901629195,0.24998584,84005.0,84002.0,0.001]
[1744901629455,0.23808673,84003.0,84002.0,0.001]
[1744901629818,0.24998737,84005.0,84002.0,0.24999316]
[1744901630027,0.23808423,84004.0,84002.0,0.25099316]
[1744901630231,0.24998737,84005.0,84002.0,0.25099316]
[1744901630432,0.01190391,84006.0,84004.0,0.34]
[1744901630792,0.01190391,84006.0,84003.0,0.23808485]
[1744901630793,0.24998511,84005.0,84002.0,0.25099379]
[1744901631020,0.01190405,84005.0,84002.0,0.001]
[1744901631196,0.01290405,84005.0,84002.0,0.001]
[1744901631398,0.01190405,84005.0,84002.0,0.001]
[1744901631626,0.2380862,84004.0,84001.0,0.58999664]
[1744901631784,0.2380862,84004.0,84002.0,0.23908919]
[1744901631959,0.2380862,84004.0,84002.0,0.001]
[1744901632376,0.001,84005.0,84001.0,0.34]
[1744901632550,0.001,84005.0,84002.0,0.25099384]
[1744901632849,0.001,84005.0,84004.0,0.34]
[1744901632990,0.001,84005.0,84004.0,0.5780839]
[1744901634116,0.001,84005.0,84004.0,0.34]
[1744901635274,0.001,84005.0,84004.0,0.5780839]
[1744901635484,0.001,84005.0,84004.0,0.5790839]
[1744901635683,0.001,84005.0,84004.0,0.341]
[1744901636385,0.001,84005.0,84004.0,0.5790839]
[1744901637591,0.001,84005.0,84004.0,0.001]
[1744901638812,0.23908106,84005.0,84004.0,0.001]
[1744901639167,0.001,84005.0,84004.0,0.001]
[1744901639713,0.001,84005.0,84004.0,0.5790839]
[1744901641770,0.24997539,84009.0,84007.0,0.23807539]
[1744901641929,0.25097539,84009.0,84006.0,0.23807721]
[1744901642130,0.25097539,84009.0,84007.0,0.23807462]
[1744901642355,0.001,84009.0,84008.0,0.23807256]
[1744901643620,0.001,84009.0,84008.0,0.57807256]
[1744901643825,0.001,84009.0,84008.0,0.62747256]
[1744901644918,0.2499251,84028.0,84008.0,0.62747256]
[1744901644919,0.000842,84035.0,84034.0,0.2379989]
[1744901645338,0.000842,84035.0,84034.0,0.5779989]
[1744901646307,0.007842,84035.0,84034.0,0.5881132]
[1744901646955,0.010842,84035.0,84034.0,0.63553407]
[1744901647700,0.010842,84035.0,84034.0,0.75498198]
[1744901647903,0.010842,84035.0,84034.0,0.80238198]
[1744901648872,0.000842,84046.0,84040.0,0.01189909]
[1744901649027,0.000842,84046.0,84045.0,0.57796775]
[1744901649229,0.000842,84046.0,84045.0,0.69741566]
[1744901650267,0.003842,84046.0,84045.0,0.69741566]
[1744901650449,0.002842,84046.0,84045.0,0.69741566]
[1744901650867,0.0008426,84060.0,84050.0,0.57795359]
[1744901651076,0.0008426,84060.0,84051.0,0.34]
[1744901651339,0.0008426,84060.0,84050.0,0.6974015]
[1744901651340,0.004,84079.0,84071.0,0.57789416]
[1744901651636,0.004,84079.0,84071.0,0.69734207]
[1744901651763,0.004,84079.0,84071.0,0.34]
[1744901652226,0.004,84079.0,84070.0,0.23789654]
[1744901652365,0.004,84079.0,84071.0,0.003]
[1744901652976,0.004,84079.0,84071.0,0.004]
[1744901653360,0.004,84079.0,84071.0,0.13228168]
[1744901653496,0.004,84079.0,84071.0,0.13466036]
[1744901653858,0.004,84079.0,84071.0,0.12582659]
[1744901654194,0.004,84079.0,84071.0,0.12344791]
[1744901654401,0.004,84079.0,84071.0,0.17262651]
[1744901655264,0.004,84079.0,84071.0,0.18140309]
[1744901655420,0.004,84079.0,84071.0,0.17902449]
[1744901658245,0.004,84079.0,84071.0,0.51902449]
[1744901659989,0.004,84079.0,84071.0,0.75691865]
[1744901662790,0.06,84099.0,84096.0,0.23782343]
[1744901663109,0.00197753,84097.0,84096.0,0.23782343]
[1744901664121,0.00597753,84097.0,84096.0,0.23782343]
[1744901664323,0.00597753,84097.0,84088.0,0.34]
[1744901664689,0.00897753,84097.0,84090.0,0.34]
[1744901664818,0.01189131,84095.0,84092.0,0.34]
[1744901665024,0.01189131,84095.0,84092.0,0.45944791]
[1744901665271,0.01189117,84096.0,84092.0,0.45944791]
[1744901665597,0.23783182,84094.0,84092.0,0.45944791]
[1744901665788,0.23783192,84093.0,84092.0,0.45944791]
[1744901666456,0.23784323,84089.0,84088.0,0.048591]
[1744901666680,0.23784606,84088.0,84087.0,0.34]
[1744901667088,0.23784606,84088.0,84087.0,0.38058133]
[1744901667567,0.01189442,84073.0,84072.0,0.34]
[1744901667780,0.23789133,84072.0,84071.0,0.14924]
[1744901668175,0.23789133,84072.0,84071.0,0.19846636]
[1744901668630,0.23689133,84072.0,84071.0,0.53846636]
[1744901668813,0.23689133,84072.0,84071.0,0.04922636]
[1744901669014,0.23792246,84061.0,84060.0,0.46147229]
[1744901669217,0.23592246,84061.0,84060.0,0.11944791]
[1744901669625,0.23592246,84061.0,84060.0,0.4684746]
[1744901669836,0.23392246,84061.0,84060.0,0.51011219]
[1744901670383,0.01189513,84068.0,84060.0,0.51011219]
[1744901670384,0.23789982,84069.0,84068.0,0.34]
[1744901670539,8.073e-05,84069.0,84068.0,0.45944791]
[1744901670946,0.23698055,84069.0,84068.0,0.45944791]
[1744901672677,0.23792246,84061.0,84060.0,0.39066428]
[1744901672835,0.23792246,84061.0,84060.0,0.51011219]
[1744901673348,0.23792246,84061.0,84060.0,0.39066428]
[1744901673957,0.23792246,84061.0,84060.0,0.05066428]
[1744901674205,0.01189683,84056.0,84053.0,0.14924]
[1744901674337,0.01189683,84056.0,84053.0,0.26868791]
[1744901674541,0.24982452,84059.0,84056.0,0.34]
[1744901675043,0.24882452,84059.0,84056.0,0.38024789]
[1744901675270,0.23793334,84058.0,84056.0,0.38024789]
[1744901675465,0.23793378,84057.0,84056.0,0.38024789]
[1744901675664,0.23793378,84057.0,84056.0,0.04024789]
[1744901675841,0.23793888,84056.0,84054.0,0.34901065]
[1744901676303,0.24882452,84059.0,84056.0,0.34]
[1744901676537,0.23793176,84058.0,84056.0,0.34]
[1744901677979,0.01189683,84056.0,84055.0,0.34]
[1744901678130,0.24983344,84056.0,84055.0,0.34]
[1744901678946,0.23793944,84055.0,84054.0,0.04897468]
[1744901679728,0.23793176,84058.0,84054.0,0.06087179]
[1744901679950,0.24882454,84059.0,84056.0,0.23793554]
[1744901680126,0.01189668,84057.0,84054.0,0.06087179]
[1744901680324,0.24983063,84057.0,84054.0,0.28691655]